bitfinex/quotes_BTCUSD_20230905
["timestamp","ask_amount","ask_price","bid_price","bid_amount"]
[1693923670496,0.004,25736.0,25735.0,5.522422]
[1693923670699,0.004,25736.0,25735.0,5.522782]
[1693923670887,0.004,25736.0,25735.0,5.523022]
[1693923671093,0.004,25736.0,25735.0,5.523202]
[1693923671301,0.004,25736.0,25735.0,5.524942]
[1693923671509,0.004,25736.0,25735.0,5.527642]
[1693923671714,0.004,25736.0,25735.0,5.528962]
[1693923671912,0.004,25736.0,25735.0,5.538322]
[1693923672115,0.004,25736.0,25735.0,5.535982]
[1693923672341,0.004,25736.0,25735.0,5.536582]
[1693923672669,0.004,25736.0,25735.0,5.535202]
[1693923672805,0.004,25736.0,25735.0,5.535922]
[1693923673046,0.004,25736.0,25735.0,5.536462]
[1693923673247,0.004,25736.0,25735.0,5.536822]
[1693923673450,0.004,25736.0,25735.0,5.536522]
[1693923673649,0.004,25736.0,25735.0,5.536642]
[1693923673850,0.004,25736.0,25735.0,5.537182]
[1693923674055,0.004,25736.0,25735.0,5.537782]
[1693923674263,0.004,25736.0,25735.0,5.534422]
[1693923674452,0.004,25736.0,25735.0,5.534062]
[1693923674658,0.004,25736.0,25735.0,5.536342]
[1693923674892,0.004,25736.0,25735.0,5.537062]
[1693923675035,0.004,25736.0,25735.0,5.537242]
[1693923675244,0.004,25736.0,25735.0,5.542042]
[1693923675445,0.004,25736.0,25735.0,5.542162]
[1693923675648,0.004,25736.0,25735.0,5.539822]
[1693923675852,0.004,25736.0,25735.0,5.539282]
[1693923676071,0.004,25736.0,25735.0,5.539822]
[1693923676272,0.004,25736.0,25735.0,5.539882]
[1693923676509,0.004,25736.0,25735.0,5.541562]
[1693923676687,0.004,25736.0,25735.0,5.543062]
[1693923676891,0.004,25736.0,25735.0,5.543422]
[1693923677294,0.004,25736.0,25735.0,5.544382]
[1693923677495,0.004,25736.0,25735.0,5.544682]
[1693923677714,0.004,25736.0,25735.0,5.545462]
[1693923677896,0.004,25736.0,25735.0,5.545702]
[1693923678092,0.004,25736.0,25735.0,5.545762]
[1693923678295,0.004,25736.0,25735.0,5.545402]
[1693923678475,0.004,25736.0,25735.0,5.544382]
[1693923678842,0.004,25736.0,25735.0,5.542942]
[1693923679060,0.004,25736.0,25735.0,5.531122]
[1693923679272,0.004,25736.0,25735.0,5.531422]
[1693923679398,0.004,25736.0,25735.0,5.534482]
[1693923679605,0.004,25736.0,25735.0,5.534062]
[1693923679807,0.004,25736.0,25735.0,5.534422]
[1693923680123,0.004,25736.0,25735.0,5.539342]
[1693923680338,0.004,25736.0,25735.0,5.542102]
[1693923680530,0.004,25736.0,25735.0,5.544682]
[1693923680685,0.004,25736.0,25735.0,5.546722]
[1693923680886,0.004,25736.0,25735.0,5.36218435]
[1693923681143,0.004,25736.0,25735.0,5.38024435]
[1693923681314,0.004,25736.0,25735.0,5.38042435]
[1693923681518,0.004,25736.0,25735.0,5.38198435]
[1693923681720,0.004,25736.0,25735.0,5.38180435]
[1693923681952,0.004,25736.0,25735.0,5.52148435]
[1693923682167,0.004,25736.0,25735.0,5.52328435]
[1693923682302,0.004,25736.0,25735.0,5.53360435]
[1693923682513,0.004,25736.0,25735.0,5.52544435]
[1693923682786,0.004,25736.0,25735.0,5.52520435]
[1693923683674,0.004,25736.0,25735.0,5.52988435]
[1693923684045,0.004,25736.0,25735.0,5.52412435]
[1693923684254,0.004,25736.0,25735.0,5.38834435]
[1693923684455,0.004,25736.0,25735.0,5.52676435]
[1693923684661,0.004,25736.0,25735.0,5.52616435]
[1693923684901,0.004,25736.0,25735.0,5.52568435]
[1693923685068,0.004,25736.0,25735.0,5.52496435]
[1693923685280,0.004,25736.0,25735.0,5.52448435]
[1693923685517,0.004,25736.0,25735.0,5.52268435]
[1693923685722,0.004,25736.0,25735.0,5.52232435]
[1693923685933,0.004,25736.0,25735.0,5.52448435]
[1693923686140,0.004,25736.0,25735.0,5.52484435]
[1693923686395,0.004,25736.0,25735.0,5.52400435]
[1693923686606,0.23221671,25737.0,25736.0,2.983163]
[1693923686812,0.23221671,25737.0,25736.0,5.17631116]
[1693923687017,0.23221671,25737.0,25736.0,5.30363116]
[1693923687220,0.23221671,25737.0,25736.0,5.44055116]
[1693923687428,0.23221671,25737.0,25736.0,5.45473242]
[1693923687641,0.23221671,25737.0,25736.0,5.45413242]
[1693923687865,0.23421671,25737.0,25736.0,5.31861242]
[1693923688044,0.23621671,25737.0,25736.0,5.32315242]
[1693923688284,0.23621671,25737.0,25736.0,5.32177242]
[1693923688499,0.23621671,25737.0,25736.0,5.56558505]
[1693923688699,0.23621671,25737.0,25736.0,5.56486505]
[1693923688908,0.23621671,25737.0,25736.0,5.31691242]
[1693923689056,0.23621671,25737.0,25736.0,5.50395793]
[1693923689327,0.23621671,25737.0,25736.0,5.50263793]
[1693923689495,0.23629465,25737.0,25736.0,5.50197793]
[1693923689726,0.23629465,25737.0,25736.0,5.31829242]
[1693923689878,0.23629465,25737.0,25736.0,5.32507242]
[1693923690090,0.14332855,25737.0,25736.0,5.32519242]
[1693923690298,0.14332855,25737.0,25736.0,5.32843242]
[1693923690463,0.23630113,25737.0,25736.0,5.32687242]
[1693923690673,0.23630113,25737.0,25736.0,5.32771242]
[1693923690875,0.23630113,25737.0,25736.0,5.32831242]
[1693923691146,0.23630113,25737.0,25736.0,5.32507242]
[1693923691344,0.23630113,25737.0,25736.0,5.32489242]
[1693923691553,0.14332855,25737.0,25736.0,5.24483242]
[1693923691759,0.14332855,25737.0,25736.0,5.43169787]
[1693923691960,0.14332855,25737.0,25736.0,5.43199787]
[1693923692165,0.14332855,25737.0,25736.0,5.42389787]
[1693923692323,0.14332855,25737.0,25736.0,5.42527787]
[1693923692527,0.14332855,25737.0,25736.0,5.42473787]
[1693923692727,0.14332855,25737.0,25736.0,5.23517242]
[1693923692949,0.14332855,25737.0,25736.0,5.24075242]
[1693923693152,0.14332855,25737.0,25736.0,5.24231242]
[1693923693355,0.14332855,25737.0,25736.0,5.24663242]
[1693923693562,0.14332855,25737.0,25736.0,5.24519242]
[1693923693905,0.14332855,25737.0,25736.0,5.46550371]
[1693923694119,0.14332855,25737.0,25736.0,5.46652371]
[1693923694338,0.14332855,25737.0,25736.0,5.46568371]
[1693923694543,0.14332855,25737.0,25736.0,5.46904371]
[1693923694752,0.14332855,25737.0,25736.0,5.46622371]
[1693923694933,0.23637008,25737.0,25736.0,5.46538371]
[1693923695082,0.23637008,25737.0,25736.0,5.46244371]
[1693923695284,0.23637008,25737.0,25736.0,5.46196371]
[1693923695501,0.23637008,25737.0,25736.0,5.46010371]
[1693923695713,0.23137008,25737.0,25736.0,5.46016371]
[1693923695975,0.23137008,25737.0,25736.0,5.46100371]
[1693923696185,0.23137008,25737.0,25736.0,5.46082371]
[1693923696340,0.23137008,25737.0,25736.0,5.45068371]
[1693923696699,0.23137008,25737.0,25736.0,5.24752371]
[1693923697517,0.23137008,25737.0,25736.0,5.31976371]
[1693923697696,0.23137008,25737.0,25736.0,5.32072371]
[1693923697901,0.23137008,25737.0,25736.0,5.32102371]
[1693923698103,0.23137008,25737.0,25736.0,5.32090371]
[1693923698308,0.23137008,25737.0,25736.0,5.32114371]
[1693923698515,0.23137008,25737.0,25736.0,5.32204371]
[1693923698720,0.23137008,25737.0,25736.0,5.24752371]
[1693923699142,0.13832855,25737.0,25736.0,5.31358371]
[1693923699351,0.13832855,25737.0,25736.0,5.31682371]
[1693923699559,0.13832855,25737.0,25736.0,5.32138371]
[1693923699771,0.13832855,25737.0,25736.0,5.32210371]
[1693923699984,0.13832855,25737.0,25736.0,5.32438371]
[1693923700191,0.13832855,25737.0,25736.0,5.32354371]
[1693923700366,0.13832855,25737.0,25736.0,5.32444371]
[1693923700566,0.13832855,25737.0,25736.0,5.32486371]
[1693923700798,0.13832855,25737.0,25736.0,5.32558371]
[1693923701093,0.13832855,25737.0,25736.0,4.20859232]
[1693923701305,0.13832855,25737.0,25736.0,4.20793232]
[1693923701507,0.13832855,25737.0,25736.0,4.20709232]
[1693923701746,0.13832855,25737.0,25736.0,4.12735232]
[1693923702712,0.13832855,25737.0,25736.0,4.19269232]
[1693923702914,0.13832855,25737.0,25736.0,5.24753378]
[1693923703111,0.13832855,25737.0,25736.0,4.12735232]
[1693923703324,0.13832855,25737.0,25736.0,3.71845232]
[1693923703524,0.13832855,25737.0,25736.0,3.49268103]
[1693923703772,0.32410571,25737.0,25736.0,3.49268103]
[1693923704331,0.38854141,25737.0,25736.0,3.49268103]
[1693923704547,0.25421286,25737.0,25736.0,2.35970426]
[1693923704744,0.83998059,25737.0,25736.0,2.35970426]
[1693923704958,0.83998059,25737.0,25736.0,1.58258326]
[1693923704959,0.65420343,25737.0,25736.0,1.58258326]
[1693923705166,0.41404866,25737.0,25736.0,1.58258326]
[1693923705375,0.41404866,25737.0,25736.0,0.80546226]
[1693923705376,0.40882293,25737.0,25736.0,0.80546226]
[1693923705819,0.40882293,25737.0,25736.0,0.80154526]
[1693923706842,0.35754627,25737.0,25736.0,0.80154526]
[1693923707483,0.61510438,25737.0,25736.0,0.02442426]
[1693923707706,2.37329402,25737.0,25736.0,0.02442426]
[1693923707909,2.09462827,25737.0,25736.0,0.02442426]
[1693923708154,2.87171927,25737.0,25736.0,0.02442426]
[1693923708370,3.31804885,25737.0,25736.0,0.02442426]
[1693923708569,3.15056099,25737.0,25736.0,0.02442426]
[1693923708981,3.13056099,25737.0,25736.0,0.02442426]
[1693923709193,3.17056099,25737.0,25736.0,0.02442426]
[1693923711432,3.94385153,25737.0,25736.0,0.02442426]
[1693923711680,3.96385153,25737.0,25736.0,0.015]
[1693923712931,3.57520626,25737.0,25736.0,0.01569136]
[1693923713549,3.57720626,25737.0,25736.0,0.02269136]
[1693923713753,3.57520626,25737.0,25736.0,0.01569136]
[1693923714169,0.06,25735.0,25731.0,1.45922336]
[1693923714376,0.33502915,25733.0,25731.0,1.45922336]
[1693923714586,0.19575166,25733.0,25731.0,1.45922336]
[1693923714804,0.26369148,25733.0,25731.0,1.45922336]
[1693923715019,0.41939148,25733.0,25731.0,1.45922336]
[1693923715427,0.06114599,25732.0,25731.0,1.45922336]
[1693923715643,1.26994515,25733.0,25731.0,0.001]
[1693923715855,0.05142429,25732.0,25731.0,0.001]
[1693923717545,0.05342429,25732.0,25731.0,0.001]
[1693923718171,0.05542429,25732.0,25731.0,0.008]
[1693923718957,0.49533979,25732.0,25731.0,0.008]
[1693923719205,1.82119951,25732.0,25731.0,0.008]
[1693923719408,1.88119951,25732.0,25731.0,0.008]
[1693923719617,1.82119951,25732.0,25731.0,0.198]
[1693923719803,1.10395751,25732.0,25731.0,0.198]
[1693923720141,0.22381551,25732.0,25731.0,0.198]
[1693923720706,0.22381551,25732.0,25731.0,0.008]
[1693923724160,1.00105751,25732.0,25731.0,0.008]
[1693923724955,1.77829951,25732.0,25731.0,0.008]
[1693923725541,1.86857238,25732.0,25731.0,0.008]
[1693923726916,1.77572072,25732.0,25731.0,0.008]
[1693923727723,1.721384,25732.0,25731.0,0.008]
[1693923727930,2.73075515,25732.0,25731.0,0.008]
[1693923728201,2.63790349,25732.0,25731.0,0.008]
[1693923729169,2.67790349,25732.0,25731.0,0.008]
[1693923729438,2.67590349,25732.0,25731.0,0.007]
[1693923729855,3.06554876,25732.0,25731.0,0.008]
[1693923730066,3.06354876,25732.0,25731.0,0.001]
[1693923730235,3.44704876,25732.0,25731.0,0.001]
[1693923730448,3.63575208,25732.0,25731.0,0.007]
[1693923730657,3.45004876,25732.0,25731.0,0.007]
[1693923730850,3.22214876,25732.0,25731.0,0.007]
[1693923732088,3.60879403,25732.0,25731.0,0.007]
[1693923733523,3.68879403,25732.0,25731.0,0.007]
[1693923733733,4.05710101,25732.0,25731.0,0.007]
[1693923733941,4.28923016,25732.0,25731.0,0.007]
[1693923734153,4.05710101,25732.0,25731.0,0.007]
[1693923734565,4.05410101,25732.0,25731.0,0.001]
[1693923734975,4.05610101,25732.0,25731.0,0.006]
[1693923736216,4.05610101,25732.0,25728.0,0.77736]
[1693923736217,0.08,25730.0,25728.0,0.77736]
[1693923736421,0.02,25731.0,25728.0,0.77736]
[1693923736422,0.1726709,25731.0,25729.0,0.22381374]
[1693923736631,0.08,25731.0,25730.0,0.83127625]
[1693923736835,0.08,25731.0,25730.0,1.60857825]
[1693923737468,0.08,25731.0,25730.0,0.05397425]
[1693923737674,0.08,25731.0,25729.0,1.555648]
[1693923737675,0.082,25731.0,25729.0,1.555648]
[1693923737881,0.08,25731.0,25729.0,1.554648]
[1693923738492,0.08,25731.0,25729.0,1.60522471]
[1693923739767,0.081,25731.0,25730.0,0.005]
[1693923739950,0.082,25731.0,25730.0,0.006]
[1693923740162,0.081,25731.0,25730.0,0.001]
[1693923740576,0.082,25731.0,25729.0,1.61022471]
[1693923740978,0.082,25731.0,25730.0,0.20907066]
[1693923741201,0.0926709,25732.0,25730.0,1.76367466]
[1693923741417,0.001,25731.0,25730.0,2.54597666]
[1693923741626,0.002,25731.0,25730.0,2.337906]
[1693923742650,0.001,25731.0,25730.0,2.332906]
[1693923743061,0.001,25731.0,25730.0,1.562604]
[1693923743311,0.0936709,25732.0,25730.0,1.561604]
[1693923743732,0.002,25731.0,25730.0,1.567604]
[1693923744112,0.004,25731.0,25730.0,1.575604]
[1693923744526,0.002,25731.0,25730.0,1.567604]
[1693923745102,0.002,25731.0,25730.0,1.575604]
[1693923745304,0.002,25731.0,25730.0,1.61180742]
[1693923745705,0.0946709,25731.0,25730.0,1.61180742]
[1693923747253,0.0946709,25731.0,25730.0,1.60380742]
[1693923747660,0.0966709,25731.0,25730.0,1.61180742]
[1693923748807,0.23567776,25731.0,25730.0,1.61180742]
[1693923749011,0.14300686,25731.0,25730.0,1.61180742]
[1693923750607,0.14300686,25731.0,25730.0,1.575604]
[1693923750811,0.23883224,25731.0,25730.0,1.575604]
[1693923751362,0.23883224,25731.0,25730.0,0.798302]
[1693923751576,0.60160659,25731.0,25730.0,0.021]
[1693923751796,0.64803242,25731.0,25730.0,0.021]
[1693923752650,0.59893628,25731.0,25730.0,0.021]
[1693923753214,2.88162336,25731.0,25730.0,0.021]
[1693923753441,2.83239421,25731.0,25730.0,0.021]
[1693923753988,2.85239421,25731.0,25730.0,0.021]
[1693923754214,3.13123593,25731.0,25730.0,0.021]
[1693923754439,3.5178812,25731.0,25730.0,0.021]
[1693923755055,3.4978812,25731.0,25730.0,0.021]
[1693923755421,3.88452647,25731.0,25730.0,0.021]
[1693923756558,3.9528642,25731.0,25730.0,0.021]
[1693923756935,3.56621893,25731.0,25730.0,0.021]
[1693923757357,3.4978812,25731.0,25730.0,0.021]
[1693923757562,3.5178812,25731.0,25730.0,0.021]
[1693923760671,3.66688989,25731.0,25730.0,0.021]
[1693923760873,3.60119767,25731.0,25730.0,0.021]
[1693923761075,3.98784294,25731.0,25730.0,0.021]
[1693923762744,3.60119767,25731.0,25730.0,0.021]
[1693923762954,2.4172804,25731.0,25730.0,0.021]
[1693923763381,2.91539429,25731.0,25730.0,0.021]
[1693923764859,1.25795029,25731.0,25730.0,0.021]
[1693923765272,2.03522229,25731.0,25730.0,0.021]
[1693923766134,2.91539429,25731.0,25730.0,0.021]
[1693923766341,3.30203956,25731.0,25730.0,0.021]
[1693923766553,2.52476756,25731.0,25730.0,0.021]
[1693923766759,2.13812229,25731.0,25730.0,0.021]
[1693923768386,2.91539429,25731.0,25730.0,0.021]
[1693923768930,2.89539429,25731.0,25730.0,0.021]
[1693923771723,2.83239421,25731.0,25730.0,0.021]
[1693923771975,3.21903948,25731.0,25730.0,0.021]
[1693923772180,3.23903948,25731.0,25730.0,0.021]
[1693923772378,3.62568475,25731.0,25730.0,0.021]
[1693923774809,3.6831332,25731.0,25730.0,0.021]
[1693923775024,3.62568475,25731.0,25730.0,0.021]
[1693923776167,3.67928962,25731.0,25730.0,0.021]
[1693923776581,3.62568475,25731.0,25730.0,0.021]
[1693923777196,3.60568475,25731.0,25730.0,0.021]
[1693923777436,3.88484286,25731.0,25730.0,0.021]
[1693923777860,3.96484286,25731.0,25730.0,0.021]
[1693923778054,4.28484286,25731.0,25730.0,0.021]
[1693923778279,4.40944464,25731.0,25730.0,0.021]
[1693923778688,4.40744464,25731.0,25730.0,0.008]
[1693923779106,4.40844464,25731.0,25730.0,0.015]
[1693923779606,4.40744464,25731.0,25730.0,0.008]
[1693923779923,4.43144464,25731.0,25730.0,0.009]
[1693923780276,4.42944464,25731.0,25730.0,0.001]
[1693923780486,0.14,25730.0,25729.0,0.01]
[1693923780730,3.55416221,25730.0,25729.0,0.01]
[1693923781366,3.8036301,25730.0,25729.0,0.01]
[1693923781540,3.8236301,25730.0,25729.0,0.01]
[1693923781742,3.91729855,25730.0,25729.0,0.011]
[1693923781941,3.8476301,25730.0,25729.0,0.011]
[1693923782186,3.90338684,25730.0,25729.0,0.011]
[1693923782387,3.53101895,25730.0,25729.0,0.011]
[1693923782951,3.55501895,25730.0,25729.0,0.012]
[1693923784184,2.11203895,25730.0,25729.0,0.012]
[1693923784391,1.97203895,25730.0,25729.0,0.012]
[1693923784756,2.11203895,25730.0,25729.0,0.012]
[1693923784969,3.55501895,25730.0,25729.0,0.012]
[1693923785604,3.98880748,25730.0,25729.0,0.012]
[1693923786418,4.00880748,25730.0,25729.0,0.012]
[1693923786841,4.13199252,25730.0,25729.0,0.012]
[1693923787044,4.23296845,25730.0,25729.0,0.012]
[1693923787495,4.55296845,25730.0,25729.0,0.012]
[1693923787698,4.71438845,25730.0,25729.0,0.012]
[1693923791781,4.32774318,25730.0,25729.0,0.012]
[1693923792018,4.39474866,25730.0,25729.0,0.012]
[1693923792244,4.38190876,25730.0,25729.0,0.012]
[1693923792451,4.11951283,25730.0,25729.0,0.012]
[1693923792657,4.39838503,25730.0,25729.0,0.012]
[1693923792839,4.09502753,25730.0,25729.0,0.012]
[1693923793072,3.59617876,25730.0,25729.0,0.012]
[1693923793279,2.81887676,25730.0,25729.0,0.012]
[1693923793703,3.65617876,25730.0,25729.0,0.012]
[1693923794132,3.60201318,25730.0,25729.0,0.012]
[1693923795172,3.62201318,25730.0,25729.0,0.012]
[1693923795590,4.22746927,25730.0,25729.0,0.012]
[1693923796640,4.12649877,25730.0,25729.0,0.012]
[1693923796970,4.16752408,25730.0,25729.0,0.012]
[1693923798081,4.22791877,25730.0,25729.0,0.012]
[1693923798666,4.28544993,25730.0,25729.0,0.012]
[1693923798872,4.12402993,25730.0,25729.0,0.012]
[1693923799025,4.06649877,25730.0,25729.0,0.012]
[1693923801091,3.73112381,25730.0,25729.0,0.012]
[1693923801486,3.6798535,25730.0,25729.0,0.012]
[1693923803672,4.8371555,25730.0,25729.0,0.012]
[1693923804676,4.93809746,25730.0,25729.0,0.012]
[1693923807213,4.9897159,25730.0,25729.0,0.012]
[1693923807413,4.88877394,25730.0,25729.0,0.012]
[1693923808564,4.86877394,25730.0,25729.0,0.012]
[1693923808806,4.8171555,25730.0,25729.0,0.012]
[1693923809010,5.30475516,25730.0,25729.0,0.012]
[1693923811311,5.32475516,25730.0,25729.0,0.012]
[1693923811929,5.37874894,25730.0,25729.0,0.012]
[1693923813907,4.87417133,25730.0,25729.0,0.012]
[1693923814018,5.26999762,25730.0,25729.0,0.012]
[1693923814826,4.99120594,25730.0,25729.0,0.012]
[1693923815063,3.99690218,25730.0,25729.0,0.012]
[1693923815492,3.89594779,25730.0,25729.0,0.012]
[1693923815885,3.9968343,25730.0,25729.0,0.012]
[1693923816907,3.89594779,25730.0,25729.0,0.012]
[1693923817386,4.28259306,25730.0,25729.0,0.012]
[1693923817790,3.99681014,25730.0,25729.0,0.012]
[1693923818219,4.39267808,25730.0,25729.0,0.012]
[1693923818698,3.99681014,25730.0,25729.0,0.012]
[1693923818975,3.89594779,25730.0,25729.0,0.012]
[1693923819177,3.99682122,25730.0,25729.0,0.012]
[1693923819965,4.46644167,25730.0,25729.0,0.012]
[1693923820402,4.13786759,25730.0,25729.0,0.012]
[1693923820584,4.11786759,25730.0,25729.0,0.012]
[1693923821020,4.0797964,25730.0,25729.0,0.012]
[1693923823234,4.41122537,25730.0,25729.0,0.012]
[1693923823461,4.39122537,25730.0,25729.0,0.012]
[1693923823671,4.77787064,25730.0,25729.0,0.012]
[1693923823887,4.92136064,25730.0,25729.0,0.012]
[1693923824308,4.75994064,25730.0,25729.0,0.012]
[1693923824729,4.0597964,25730.0,25729.0,0.012]
[1693923825973,4.37329537,25730.0,25729.0,0.012]
[1693923826178,4.0597964,25730.0,25729.0,0.012]
[1693923826401,4.37329537,25730.0,25729.0,0.012]
[1693923827216,4.39329537,25730.0,25729.0,0.012]
[1693923827421,4.77994064,25730.0,25729.0,0.012]
[1693923828802,4.46644167,25730.0,25729.0,0.012]
[1693923829637,4.78043724,25730.0,25729.0,0.012]
[1693923830727,4.78047058,25730.0,25729.0,0.012]
[1693923831581,4.46644167,25730.0,25729.0,0.012]
[1693923833027,5.60109978,25730.0,25729.0,0.012]
[1693923833246,0.16,25726.0,25725.0,12.5916337]
[1693923833478,4.5976149,25726.0,25725.0,12.5916337]
[1693923833693,5.50364315,25726.0,25725.0,12.39723376]
[1693923833901,5.52364315,25726.0,25725.0,12.39723376]
[1693923834648,5.47263057,25726.0,25725.0,12.20383196]
[1693923834858,5.15875028,25726.0,25725.0,12.20383196]
[1693923835059,5.43263057,25726.0,25725.0,12.20383196]
[1693923835271,5.41263057,25726.0,25725.0,12.20283196]
[1693923835671,5.10075028,25726.0,25725.0,12.20883196]
[1693923835867,5.10075028,25726.0,25725.0,12.01443016]
[1693923836104,5.10275028,25726.0,25725.0,12.02543016]
[1693923836312,5.10275028,25726.0,25725.0,11.83102836]
[1693923837348,5.10275028,25726.0,25725.0,11.63662656]
[1693923838410,5.05441475,25726.0,25725.0,11.63662656]
[1693923838611,4.95354132,25726.0,25725.0,11.44222476]
[1693923839264,4.95354132,25726.0,25725.0,11.24782296]
[1693923839447,4.89412897,25726.0,25725.0,11.24782296]
[1693923840113,4.89412897,25726.0,25725.0,11.05342116]
[1693923840935,5.12359686,25726.0,25725.0,11.05342116]
[1693923841339,5.12359686,25726.0,25725.0,10.85901936]
[1693923841745,5.12359686,25726.0,25725.0,10.66461756]
[1693923841946,4.96217686,25726.0,25725.0,10.66461756]
[1693923842264,5.02401605,25726.0,25725.0,10.66461756]
[1693923842467,4.77454816,25726.0,25725.0,10.66461756]
[1693923842712,4.75454816,25726.0,25725.0,10.47021576]
[1693923843041,4.77454816,25726.0,25725.0,10.47021576]
[1693923843258,5.05319521,25726.0,25725.0,10.47021576]
[1693923843636,4.65740172,25726.0,25725.0,10.47021576]
[1693923844162,4.60098055,25726.0,25725.0,10.27581396]
[1693923844357,4.60098055,25726.0,25725.0,10.08141216]
[1693923844568,4.60098055,25726.0,25725.0,10.08995538]
[1693923845551,4.60098055,25726.0,25725.0,9.89555358]
[1693923845916,4.53914136,25726.0,25725.0,9.89555358]
[1693923846316,4.59789572,25726.0,25725.0,9.89555358]
[1693923846713,4.59789572,25726.0,25725.0,9.70115178]
[1693923846714,4.60343035,25726.0,25725.0,9.70115178]
[1693923847157,4.60343035,25726.0,25725.0,9.50674998]
[1693923848365,4.53914136,25726.0,25725.0,9.31234818]
[1693923848903,4.59390687,25726.0,25725.0,9.31234818]
[1693923849297,4.53914136,25726.0,25725.0,9.31234818]
[1693923849505,4.53914136,25726.0,25725.0,9.11794638]
[1693923849750,4.46856036,25726.0,25725.0,9.11794638]
[1693923849953,3.39255157,25726.0,25725.0,8.92354458]
[1693923850989,3.39255157,25726.0,25725.0,8.72914278]
[1693923851380,3.39813471,25726.0,25725.0,8.72914278]
[1693923852166,3.39813471,25726.0,25725.0,8.53474098]
[1693923852528,3.39813471,25726.0,25725.0,8.34033918]
[1693923853574,3.39813471,25726.0,25725.0,8.14593738]
[1693923854856,3.39813471,25726.0,25725.0,7.95153558]
[1693923855243,3.33813471,25726.0,25725.0,7.75713378]
[1693923855603,0.49346434,25726.0,25725.0,8.92123205]
[1693923855812,0.49346434,25726.0,25725.0,9.69868505]
[1693923856012,0.49346434,25726.0,25725.0,9.80158505]
[1693923856013,0.42186643,25726.0,25725.0,9.80158505]
[1693923856219,0.32901596,25726.0,25725.0,9.80158505]
[1693923857066,0.14329557,25726.0,25725.0,9.1284932]
[1693923857484,0.14329557,25726.0,25725.0,9.2840602]
[1693923858188,0.0968718,25726.0,25725.0,10.34795978]
[1693923858392,0.0968718,25726.0,25725.0,10.53190981]
[1693923858605,0.004,25726.0,25725.0,10.53190981]
[1693923859014,0.004,25726.0,25725.0,10.63190981]
[1693923859221,0.004,25726.0,25725.0,10.44795978]
[1693923859715,0.004,25726.0,25725.0,11.0649523]
[1693923861057,0.002,25726.0,25725.0,11.0589523]
[1693923861251,0.23216737,25728.0,25726.0,0.1]
[1693923861455,0.0928718,25728.0,25727.0,2.435079]
[1693923861662,0.0928718,25728.0,25727.0,2.44367291]
[1693923862199,0.0928718,25728.0,25727.0,2.83031818]
[1693923862618,0.0928718,25728.0,25727.0,2.44367291]
[1693923863806,0.0938718,25728.0,25727.0,2.44367291]
[1693923864197,0.0928718,25728.0,25727.0,2.44367291]
[1693923864442,0.0978718,25728.0,25727.0,2.44467291]
[1693923864850,0.1018718,25728.0,25727.0,2.44567291]
[1693923865671,0.1018718,25728.0,25727.0,1.66827991]
[1693923869052,0.1018718,25728.0,25727.0,1.56537991]
[1693923870425,0.1018718,25728.0,25727.0,0.78798691]
[1693923871503,0.24116737,25728.0,25727.0,0.78798691]
[1693923872365,0.24116737,25728.0,25727.0,0.01059391]
[1693923872775,0.24116737,25728.0,25727.0,0.21605056]
[1693923873565,0.24114806,25728.0,25727.0,0.21605056]
[1693923873766,0.24114806,25728.0,25727.0,0.99344356]
[1693923875756,0.24114806,25728.0,25727.0,1.77083656]
[1693923875757,0.10185249,25728.0,25727.0,1.77083656]
[1693923877383,0.10185249,25728.0,25727.0,2.26038183]
[1693923877590,0.10185249,25728.0,25727.0,3.05777483]
[1693923877817,0.009,25728.0,25727.0,3.05777483]
[1693923879671,0.009,25728.0,25727.0,2.67112956]
[1693923880945,0.009,25728.0,25727.0,2.54567291]
[1693923881230,0.009,25728.0,25727.0,2.56567291]
[1693923881452,0.009,25728.0,25727.0,3.02101818]
[1693923881645,0.009,25728.0,25727.0,3.04297818]
[1693923881886,0.009,25728.0,25727.0,3.04303818]
[1693923882076,0.009,25728.0,25727.0,3.42944345]
[1693923882285,0.004,25728.0,25727.0,3.84526345]
[1693923882497,0.09285249,25732.0,25731.0,0.1]
[1693923882714,0.09285249,25732.0,25731.0,3.311988]
[1693923882930,0.09285249,25732.0,25731.0,3.53532514]
[1693923883144,0.09285249,25732.0,25731.0,4.2912758]
[1693923883372,0.13929557,25733.0,25732.0,0.12]
[1693923883373,0.09285249,25733.0,25732.0,0.12]
[1693923883586,0.09285249,25734.0,25733.0,0.1]
[1693923883796,0.09285249,25735.0,25734.0,0.1]
[1693923884013,0.09285249,25735.0,25734.0,1.757262]
[1693923884224,0.09285249,25735.0,25734.0,2.534443]
[1693923885295,0.23214806,25737.0,25736.0,0.1]
[1693923885505,0.09285249,25737.0,25736.0,3.51913839]
[1693923885733,1.22134806,25738.0,25737.0,0.1]
[1693923885939,0.23209327,25738.0,25737.0,2.534173]
[1693923886562,0.28928118,25738.0,25737.0,2.534173]
[1693923886981,0.23209327,25738.0,25737.0,2.431273]
[1693923887185,0.0927977,25738.0,25737.0,2.534173]
[1693923887386,0.0927977,25738.0,25737.0,2.89034515]
[1693923887593,0.0937977,25738.0,25737.0,2.90334515]
[1693923888027,0.002,25738.0,25737.0,2.91534515]
[1693923888241,0.001,25738.0,25737.0,2.90334515]
[1693923888658,0.001,25738.0,25737.0,2.93567224]
[1693923888869,0.001,25738.0,25737.0,2.93267224]
[1693923889096,0.2433977,25739.0,25738.0,0.02]
[1693923889301,0.2433977,25739.0,25738.0,2.351183]
[1693923889513,0.1506,25739.0,25738.0,2.351183]
[1693923889758,0.1506,25739.0,25738.0,2.454083]
[1693923889962,0.46439327,25740.0,25739.0,0.02]
[1693923889963,0.23209327,25740.0,25739.0,0.02]
[1693923890173,0.23209327,25740.0,25739.0,2.45399]
[1693923890565,0.0927977,25740.0,25739.0,2.45399]
[1693923891673,0.14736341,25740.0,25739.0,2.45399]
[1693923892102,0.30965898,25740.0,25739.0,2.45599]
[1693923892515,0.30965898,25740.0,25739.0,2.35309]
[1693923892771,0.33165898,25740.0,25739.0,2.35509]